bitfinex/quotes_ETHUSD_20250131
["timestamp","ask_amount","ask_price","bid_price","bid_amount"]
[1738357536226,3.01133,3320.8,3320.4,0.07488971]
[1738357536441,3.01133,3320.8,3320.2,3.01184]
[1738357536640,3.01133,3320.8,3320.5,0.07481625]
[1738357536841,3.22833,3320.8,3320.2,3.01184]
[1738357537153,0.217,3320.8,3320.6,0.0747428]
[1738357537359,3.22834,3320.8,3320.2,3.01184]
[1738357537745,3.22834,3320.8,3320.3,0.07496317]
[1738357538126,3.01156,3320.6,3320.3,0.07496317]
[1738357538344,3.01168,3320.4,3320.3,0.07496317]
[1738357538613,4.32708,3320.4,3320.3,0.07496317]
[1738357538814,1.3154,3320.4,3319.4,3.01251]
[1738357539015,3.01204,3320.1,3319.4,3.01251]
[1738357539268,0.03064292,3320.0,3319.5,0.07299342]
[1738357539411,3.01206,3320.0,3319.5,0.07299342]
[1738357539960,3.01197,3320.1,3319.5,3.08548342]
[1738357540814,3.01204,3320.0,3319.5,3.08548342]
[1738357541062,3.01186,3320.2,3319.6,3.01235]
[1738357541379,0.9824,3320.4,3319.9,3.01208]
[1738357541534,0.9824,3320.4,3320.0,3.01204]
[1738357541732,0.9824,3320.4,3320.1,0.07273087]
[1738357543421,3.01134,3320.8,3320.1,3.08467087]
[1738357543622,0.217,3320.7,3320.2,3.0118]
[1738357543821,0.7822,3320.9,3320.5,3.01159]
[1738357544131,0.9992,3321.2,3320.7,3.01134]
[1738357544314,4.01018,3321.2,3320.8,0.07211916]
[1738357545160,0.9992,3321.2,3320.8,0.07211916]
[1738357545525,0.217,3321.2,3320.8,0.07211916]
[1738357546055,3.04170292,3321.1,3320.8,0.07211916]
[1738357546219,3.01116,3321.0,3320.8,0.07211916]
[1738357546558,3.228,3321.2,3320.9,0.07196492]
[1738357546758,3.01105,3321.1,3320.6,3.01149]
[1738357546958,3.228,3321.2,3320.7,0.0721118]
[1738357547687,3.228,3321.2,3320.7,3.0834718]
[1738357547872,0.217,3321.2,3320.8,3.01124]
[1738357548263,0.217,3321.2,3320.9,0.07196492]
[1738357548502,3.22796,3321.2,3320.9,0.07196492]
[1738357548680,3.01106,3321.1,3320.9,0.07196492]
[1738357548863,3.01106,3321.1,3320.6,3.01146]
[1738357549194,3.01096,3321.2,3320.6,3.61377]
[1738357549351,3.01096,3321.2,3320.7,3.0834918]
[1738357549855,3.01089,3321.3,3320.7,3.0834918]
[1738357550195,3.99922,3321.4,3320.7,3.0834918]
[1738357550196,3.01098,3321.2,3320.7,3.0834918]
[1738357551898,3.01082,3321.4,3320.8,3.84031]
[1738357552193,3.22787,3321.3,3320.9,0.07196492]
[1738357552987,0.217,3321.3,3320.9,0.07196492]
[1738357553199,3.22787,3321.3,3320.9,0.07196492]
[1738357554101,3.01087,3321.3,3320.9,0.07196492]
[1738357554396,6.0218,3321.3,3320.9,0.07196492]
[1738357554553,3.01087,3321.3,3320.9,0.07196492]
[1738357555085,3.01098,3321.2,3320.9,0.07196492]
[1738357555592,3.01114,3321.0,3320.9,0.07196492]
[1738357555782,3.01114,3321.0,3320.5,3.01158]
[1738357555978,3.01114,3321.0,3320.9,0.07170024]
[1738357556186,3.01114,3321.0,3320.5,3.01158]
[1738357556387,3.01114,3321.0,3320.9,0.07170024]
[1738357556585,3.01114,3321.0,3320.5,3.01158]
[1738357556791,3.01114,3321.0,3320.9,0.07170024]
[1738357556969,3.01114,3321.0,3320.5,3.01154]
[1738357557169,3.01114,3321.0,3320.6,0.07192056]
[1738357557713,3.01106,3321.1,3320.6,3.08341056]
[1738357560225,0.018,3499.9,3320.6,3.08341056]
[1738357560226,0.7984,3322.0,3320.8,3.82742]
[1738357560512,0.7984,3322.0,3321.0,5.77245157]
[1738357560725,0.7984,3322.3,3321.8,3.01036]
[1738357561013,0.1647821,3322.4,3322.2,3.01003]
[1738357561233,0.1647821,3322.4,3321.9,0.07089647]
[1738357561234,0.1647821,3322.4,3322.0,3.01016]
[1738357561514,0.1647821,3322.4,3322.3,0.07044141]
[1738357561669,0.1647821,3322.4,3322.1,3.01008]
[1738357561874,0.1647821,3322.4,3321.9,3.01025]
[1738357562075,0.1647821,3322.4,3322.2,3.88775478]
[1738357562278,0.1647821,3322.4,3322.0,3.01018]
[1738357562576,0.1647821,3322.4,3321.8,0.8072]
[1738357562577,3.9771521,3322.4,3322.3,0.07034396]
[1738357562776,3.01028,3322.0,3321.5,0.824]
[1738357562977,3.01009,3322.2,3321.6,0.07085489]
[1738357563179,3.9771821,3322.4,3321.8,3.01039]
[1738357563373,3.1746821,3322.4,3321.9,0.06999106]
[1738357563699,3.01013,3322.2,3321.7,3.01049]
[1738357564032,0.1647821,3322.4,3322.0,0.06957517]
[1738357564328,0.1647821,3322.4,3321.9,3.01026]
[1738357564473,0.1647821,3322.4,3321.7,3.01048]
[1738357564474,3.00997,3322.3,3322.1,0.06950179]
[1738357564677,3.00997,3322.3,3322.0,0.06957517]
[1738357564877,0.1647821,3322.4,3322.2,0.06942841]
[1738357565127,3.1746621,3322.4,3322.1,0.06950179]
[1738357565306,3.1746621,3322.4,3322.3,0.06935503]
[1738357565507,3.1746621,3322.4,3322.2,0.06942841]
[1738357565824,3.1746621,3322.4,3322.3,0.06935503]
[1738357566182,3.1746621,3322.4,3321.7,3.01042]
[1738357566503,3.01018,3322.1,3321.8,0.06972195]
[1738357566826,3.01002,3322.3,3321.7,3.393892]
[1738357566993,3.01002,3322.3,3321.9,0.06964856]
[1738357567327,3.01002,3322.3,3321.7,3.393892]
[1738357567328,3.01002,3322.3,3321.8,0.06972195]
[1738357567493,3.01002,3322.3,3321.7,3.393892]
[1738357567494,3.01002,3322.3,3322.0,0.06957517]
[1738357567694,3.01002,3322.3,3321.9,0.06964856]
[1738357567994,3.01002,3322.3,3322.0,0.06957517]
[1738357568417,0.1647821,3322.4,3321.8,3.01036]
[1738357568706,3.01005,3322.2,3322.1,0.06950179]
[1738357569024,3.00996,3322.3,3322.1,0.06950179]
[1738357569325,3.00996,3322.3,3321.7,3.01043]
[1738357569528,3.00996,3322.3,3322.2,0.06942841]
[1738357569758,0.1647821,3322.4,3321.8,3.01034]
[1738357569888,0.1647821,3322.4,3321.5,0.824]
[1738357569889,3.00997,3322.3,3322.2,0.06942841]
[1738357570089,3.01014,3322.2,3321.6,3.01054]
[1738357570388,3.01014,3322.2,3321.5,0.824]
[1738357570389,0.03064292,3322.2,3321.5,0.824]
[1738357570588,3.01068,3321.6,3320.9,0.793]
[1738357570790,3.01068,3321.6,3320.9,4.23542505]
[1738357570791,3.01074,3321.5,3320.9,4.23542505]
[1738357571293,3.79477,3322.0,3320.5,8.76]
[1738357571294,3.01108,3321.1,3320.5,0.7509]
[1738357571491,3.01108,3321.1,3320.5,3.76247]
[1738357572213,3.01108,3321.1,3320.6,3.01149]
[1738357572618,3.01108,3321.1,3320.5,0.7509]
[1738357572824,3.83747,3321.3,3320.5,0.7509]
[1738357573007,3.01102,3321.2,3320.6,3.01144]
[1738357573208,3.83747,3321.3,3320.6,3.01144]
[1738357573408,3.01108,3321.1,3320.6,3.01144]
[1738357573848,0.684855,3321.1,3320.2,0.7572]
[1738357574049,3.0113,3320.9,3320.2,0.7572]
[1738357574210,3.01098,3321.2,3320.6,3.01149]
[1738357574839,3.01098,3321.2,3320.4,3.01164]
[1738357575048,3.01105,3321.1,3320.5,3.01151]
[1738357575546,3.01105,3321.1,3320.5,3.01158]
[1738357575850,0.217,3321.2,3320.9,3.01122]
[1738357576543,0.217,3321.2,3321.0,3.01105]
[1738357576742,0.217,3321.2,3321.1,3.01105]
[1738357579343,3.04097292,3321.9,3321.1,3.01105]
[1738357579516,3.25797292,3321.9,3321.1,3.01105]
[1738357579718,3.25797292,3321.9,3321.3,3.01082]
[1738357579910,3.22733,3321.9,3321.3,3.01082]
[1738357580118,0.217,3321.9,3321.4,3.01072]
[1738357581355,3.22732,3321.9,3321.4,3.01072]
[1738357581514,3.01043,3321.8,3321.2,3.01094]
[1738357581703,3.22734,3321.9,3321.3,3.01085]
[1738357581903,3.01046,3321.8,3321.2,4.489145]
[1738357582260,0.217,3321.9,3321.4,3.01076]
[1738357582611,0.217,3321.9,3321.5,0.0630393]
[1738357582828,3.22734,3321.9,3321.5,0.0630393]
[1738357583050,3.01047,3321.8,3321.5,0.0630393]
[1738357583277,3.0105,3321.7,3321.5,0.0630393]
[1738357583551,3.01066,3321.6,3321.0,11.77111]
[1738357583776,3.01056,3321.7,3321.0,16.034581]
[1738357584180,3.01044,3321.8,3321.0,13.023521]
[1738357584474,0.217,3321.9,3321.3,3.01086]
[1738357585016,0.1647821,3322.4,3321.6,3.01051]
[1738357585221,3.3916721,3322.4,3321.8,3.78705]
[1738357585644,3.3916721,3322.4,3321.9,3.01029]
[1738357586018,0.1647821,3322.4,3321.8,0.7767]
[1738357586224,3.3917421,3322.4,3321.7,0.301051]
[1738357587121,3.01003,3322.3,3321.7,0.301051]
[1738357587324,3.01005,3322.2,3321.6,3.01054]
[1738357588135,3.01005,3322.2,3321.6,3.01053]
[1738357589067,3.01005,3322.2,3321.7,3.0105]
[1738357589226,3.3916921,3322.4,3321.7,3.0105]
[1738357589426,3.00998,3322.3,3321.7,3.0105]
[1738357589859,3.00998,3322.3,3321.8,3.01037]
[1738357590222,3.22698,3322.3,3321.8,3.01037]
[1738357590638,3.22698,3322.3,3321.6,6.02104]
[1738357590835,3.82387,3322.2,3321.6,3.01051]
[1738357591121,0.8138,3322.2,3321.6,3.01056]
[1738357591320,0.8138,3322.2,3321.6,6.02108]
[1738357591623,3.82392,3322.2,3321.6,3.01052]
[1738357591936,0.8138,3322.2,3321.7,3.01043]
[1738357592123,3.22698,3322.3,3321.7,3.01043]
[1738357592341,0.217,3322.3,3321.7,0.684905]
[1738357592568,0.1647821,3322.4,3322.0,3.0102]
[1738357592884,0.1647821,3322.4,3322.1,3.01008]
[1738357593056,0.1647821,3322.4,3322.3,3.00996]
[1738357593639,0.1647821,3322.4,3322.1,6.80043]
[1738357593878,0.1647821,3322.4,3322.2,3.01001]
[1738357594382,0.1647821,3322.4,3322.3,3.00996]
[1738357595382,3.01014,3322.1,3321.6,12.52913]
[1738357595880,3.01014,3322.1,3321.6,11.77053]
[1738357596638,3.01014,3322.1,3321.6,12.71323456]
[1738357597144,3.01014,3322.1,3321.7,0.05819674]
[1738357599814,0.1647821,3322.4,3321.0,3.01108]
[1738357599815,0.81594292,3322.0,3321.0,3.01108]
[1738357599995,0.81594292,3322.0,3320.9,0.8226]
[1738357599996,3.01084,3321.4,3320.9,0.8226]
[1738357600170,3.22784,3321.4,3320.9,4.51832]
[1738357600509,3.22784,3321.4,3320.9,3.8338]
[1738357600713,0.217,3321.4,3320.6,0.8178]
[1738357600878,3.01105,3321.2,3320.6,0.8178]
[1738357601079,0.8231,3321.3,3320.6,1.53710636]
[1738357601300,0.8231,3321.3,3320.8,3.01132]
[1738357602104,3.83402,3321.3,3320.7,3.01135]
[1738357602311,3.83402,3321.3,3320.7,3.01133]
[1738357602469,3.86466292,3321.3,3320.7,3.01133]
[1738357602671,3.83402,3321.3,3320.8,3.0113]
[1738357603913,0.8231,3321.3,3320.8,6.0226]
[1738357604083,0.217,3321.4,3320.8,3.0113]
[1738357604403,3.2278,3321.4,3320.9,3.01121]
[1738357604707,3.2278,3321.4,3320.8,3.0113]
[1738357604708,6.23865,3321.4,3320.8,3.0113]
[1738357605007,3.2278,3321.4,3320.8,3.0113]
[1738357605172,3.01091,3321.3,3320.8,3.0113]
[1738357605767,3.2278,3321.4,3320.8,3.0113]
[1738357606601,0.217,3321.4,3320.8,3.3718433]
[1738357606768,0.217,3321.4,3321.0,3.0111]
[1738357607164,0.8198,3321.9,3320.9,3.01123]
[1738357607412,0.216,3321.8,3321.4,3.01076]
[1738357607781,3.01052,3321.7,3321.1,3.011]
[1738357608477,3.01067,3321.6,3321.0,3.01107]
[1738357609809,3.01061,3321.6,3320.8,3.3718733]
[1738357609983,3.01061,3321.6,3321.0,3.01109]
[1738357610183,0.03064292,3321.6,3320.8,3.3718333]
[1738357610426,3.01082,3321.4,3320.8,3.01124]
[1738357610565,3.01082,3321.4,3320.9,3.01123]
[1738357610971,3.01063,3321.6,3321.0,3.01111]
[1738357612107,3.01063,3321.6,3321.1,0.0533466]
[1738357612710,3.01078,3321.4,3321.1,0.0533466]
[1738357613012,3.01078,3321.4,3320.9,3.01117]
[1738357613204,3.01078,3321.4,3321.0,0.05342003]
[1738357613522,3.01063,3321.6,3321.0,0.05342003]
[1738357613523,3.01063,3321.6,3321.0,3.06455003]
[1738357613816,6.02131,3321.6,3321.0,3.06455003]
[1738357614170,6.0213,3321.6,3321.0,3.06455003]
[1738357614371,3.01063,3321.6,3321.0,3.06455003]
[1738357614855,3.01063,3321.6,3321.0,6.07562003]
[1738357614992,3.01063,3321.6,3321.0,3.67205203]
[1738357615392,3.01068,3321.5,3321.0,3.67205203]
[1738357616145,3.22646,3321.8,3321.1,3.01099]
[1738357616315,3.01052,3321.7,3321.2,3.01091]
[1738357616642,3.01052,3321.7,3321.2,3.06418318]
[1738357616833,0.24664292,3321.8,3321.2,0.05327318]
[1738357617007,3.01086,3321.3,3321.2,0.05327318]
[1738357617206,3.01086,3321.3,3320.7,3.01137]
[1738357617419,3.01079,3321.4,3320.8,3.06486076]
[1738357617609,3.01062,3321.6,3320.9,3.01117]
[1738357617809,3.01069,3321.5,3321.0,0.05343389]
[1738357618009,3.01069,3321.5,3321.0,3.06456389]
[1738357619837,3.82221,3322.2,3321.3,0.7638]
[1738357620039,0.216,3322.0,3321.5,3.01061]
[1738357620211,0.216,3322.0,3321.4,0.05314574]
[1738357620742,3.01065,3321.6,3321.0,3.01112]
[1738357621043,3.01065,3321.6,3321.0,4.565722]
[1738357621213,3.01065,3321.6,3321.1,0.05332167]
[1738357622133,3.0107,3321.5,3321.1,0.05332167]
[1738357622367,3.01046,3321.8,3321.2,3.01088]
[1738357622540,3.01046,3321.8,3321.3,3.01085]
[1738357622838,3.01046,3321.8,3321.3,3.06397218]
[1738357623320,3.22626,3322.0,3321.4,3.01074]
[1738357623527,6.23655,3322.0,3321.4,3.01074]
[1738357623736,3.22626,3322.0,3321.5,0.05300584]
[1738357624044,3.22626,3322.0,3321.5,3.06367584]
[1738357624737,3.82217,3322.2,3321.6,0.03010508]
[1738357624738,0.216,3322.1,3321.6,0.03010508]
[1738357624904,0.216,3322.1,3321.7,3.0105]
[1738357625105,0.216,3322.1,3321.7,0.05282578]
[1738357626472,0.216,3322.1,3321.7,3.06332578]
[1738357626966,3.22619,3322.1,3321.7,0.05282578]
[1738357627270,3.01037,3321.9,3321.7,0.05282578]
[1738357627429,3.22619,3322.1,3321.7,0.05282578]
[1738357627629,3.01024,3322.0,3321.5,0.8192]
[1738357627855,3.01048,3321.8,3321.6,0.05282161]
[1738357628164,3.0105,3321.7,3321.6,0.05282161]
[1738357628367,3.01123,3320.9,3320.4,3.83668]
[1738357628576,3.01123,3320.9,3319.8,11.52137157]
[1738357628577,3.22732,3320.8,3320.3,3.01176]
[1738357628725,3.01152,3320.6,3320.5,0.05177709]
[1738357628926,4.36509,3320.5,3320.4,0.0484002]
[1738357629164,3.01242,3319.6,3319.0,3.01294]
[1738357629472,3.01242,3319.6,3318.9,3.53747157]
[1738357629473,1.1344465,3319.5,3319.1,0.04601267]
[1738357629768,3.22852,3319.5,3319.1,0.04601267]
[1738357629929,0.216,3319.5,3319.0,3.01295]
[1738357630127,0.216,3319.5,3319.2,0.04430301]
[1738357630329,0.216,3319.5,3319.1,0.04437653]
[1738357630527,3.04323292,3319.4,3319.3,0.04422951]
[1738357630752,3.04323292,3319.4,3318.3,3.12869021]
[1738357630753,0.565,3319.3,3319.2,0.04430301]
[1738357630965,0.7573,3319.2,3318.1,3.01376]
[1738357631336,3.01312,3318.9,3318.2,0.04503833]
[1738357631777,3.01289,3319.1,3318.2,3.05870833]
[1738357632069,0.40766192,3319.0,3318.3,0.04496478]
[1738357632440,3.390029,3319.0,3318.3,0.04496478]
[1738357632626,0.377019,3319.0,3318.6,3.01329]
[1738357632832,0.216,3318.9,3318.7,0.04467062]
[1738357633076,0.216,3318.9,3318.5,3.01332]
[1738357633234,0.216,3318.9,3318.8,0.04459709]
[1738357633424,0.216,3318.9,3318.5,3.01332]
[1738357633642,0.216,3318.9,3318.6,0.04474415]
[1738357634176,0.216,3318.9,3318.5,3.01338]
[1738357634336,0.216,3318.9,3318.7,0.04467062]
[1738357634537,3.01322,3318.7,3318.6,0.04474415]
[1738357634740,0.7724,3318.5,3318.0,3.01385]
[1738357634987,0.03064292,3318.4,3317.6,3.01416]
[1738357635170,3.78587,3318.5,3317.8,3.01404]
[1738357635542,3.78587,3318.5,3317.5,0.765]
[1738357635543,0.7724,3318.5,3317.9,3.01395]
[1738357636083,0.7724,3318.5,3317.5,0.765]
[1738357636084,0.565,3318.4,3317.5,3.7793]
[1738357636244,0.55,3318.2,3317.3,3.01449]
[1738357636449,0.55,3318.2,3317.5,3.01423]
[1738357636649,0.55,3318.2,3317.6,3.01422]
[1738357636845,0.55,3318.2,3317.4,3.01433]
[1738357637155,0.43814929,3318.3,3317.2,0.8053]
[1738357637380,0.7724,3318.5,3317.8,3.01398]
[1738357637580,0.55,3318.4,3317.9,3.01393]
[1738357638177,0.55,3318.4,3317.6,3.0142]
[1738357638375,3.56352,3318.4,3317.6,3.0142]
[1738357638672,3.01378,3318.1,3317.4,3.01439]
[1738357639016,0.7724,3318.5,3317.8,3.01398]
[1738357639308,0.378579,3318.4,3317.8,3.01398]
[1738357639504,0.378579,3318.4,3317.2,6.58125157]
[1738357639671,0.378579,3318.4,3317.8,3.01401]
[1738357640479,0.378579,3318.4,3317.6,3.01422]
[1738357640691,0.378579,3318.4,3316.8,3.01488]
[1738357640692,0.7688,3317.5,3316.8,3.01488]
[1738357640912,0.216,3317.4,3316.6,3.01507]
[1738357641216,0.58064292,3317.3,3316.4,0.8323]
[1738357641415,0.55,3317.3,3316.5,3.01522]
[1738357641620,0.55,3317.3,3316.2,11.77542]
[1738357641621,0.03064292,3317.2,3316.2,11.77542]
[1738357641818,0.8059,3317.0,3316.3,3.01537]
[1738357642117,0.8059,3317.0,3316.1,0.7723]
[1738357642118,0.03064292,3316.9,3316.4,0.04708582]
[1738357642303,0.015,3316.9,3316.4,0.04708582]
[1738357642512,3.78104,3316.6,3315.4,0.7792]
[1738357642713,0.7659,3316.6,3316.5,0.04701219]
[1738357642886,1.143994,3316.6,3315.8,3.01586]
[1738357643088,0.7659,3316.6,3315.9,3.01573]
[1738357643294,0.7659,3316.6,3315.9,3.06318404]
[1738357643878,0.35951629,3317.1,3316.2,3.01549]
[1738357643879,0.216,3316.5,3316.2,3.01549]
[1738357644229,0.216,3316.5,3315.9,0.04745404]
[1738357644230,0.216,3317.1,3316.4,3.01531]
[1738357644429,0.216,3317.1,3316.8,3.01494]
[1738357644575,0.216,3317.1,3316.9,0.0467177]
[1738357644779,0.216,3317.1,3317.0,3.01477]
[1738357645025,0.216,3317.1,3317.0,0.0466441]
[1738357645221,0.216,3317.1,3316.9,3.01477]
[1738357645526,0.216,3317.1,3317.0,3.61280488]
[1738357645823,0.216,3317.1,3317.0,6.62757488]
[1738357646879,0.216,3317.3,3317.2,3.0145]
[1738357647294,0.216,3317.3,3317.2,3.06099689]
[1738357647825,0.216,3317.3,3317.2,3.06108689]
[1738357648412,0.216,3317.3,3317.2,0.04649689]
[1738357648982,0.216,3317.3,3317.0,3.56616078]
[1738357649322,0.216,3317.3,3317.1,0.04657049]
[1738357650736,0.7714,3317.8,3317.2,3.01459]
[1738357650885,0.216,3317.7,3317.6,3.56616078]
[1738357651415,0.216,3318.1,3317.7,3.01407]
[1738357651731,0.216,3318.1,3318.0,3.56616078]
[1738357652084,0.216,3318.1,3318.0,3.61232963]
[1738357652687,0.8321,3318.7,3318.1,3.01377]
[1738357652991,0.8321,3318.7,3318.0,3.61232963]
[1738357652992,0.7738,3319.1,3318.6,3.56616078]
[1738357653327,0.53228,3319.0,3318.7,0.04565402]
[1738357653735,0.216,3318.9,3318.7,0.04565402]
[1738357655087,0.7738,3319.1,3318.7,0.04565402]
[1738357655292,0.7738,3319.1,3319.0,3.56616078]
[1738357655493,0.9898,3319.1,3319.0,3.56616078]
[1738357655792,0.9898,3319.1,3319.0,3.61159422]
[1738357656201,2.389,3319.2,3319.0,3.61159422]
[1738357656429,2.389,3319.2,3319.1,3.01286]
[1738357656633,2.389,3319.2,3319.1,3.05821993]
[1738357657140,2.389,3319.2,3319.1,0.04535993]
[1738357658221,0.216,3319.3,3319.1,0.04535993]
[1738357659405,0.216,3319.3,3319.2,3.01277]
[1738357659603,0.216,3319.3,3319.2,0.04497056]
[1738357659807,0.216,3319.3,3319.0,6.57904078]
[1738357660022,0.216,3319.3,3319.2,3.01277]
[1738357660434,0.216,3319.3,3319.2,0.04497056]
[1738357660604,0.216,3319.3,3319.0,3.56616078]
[1738357660945,0.216,3319.3,3319.1,0.04506346]
[1738357661314,0.03064292,3319.2,3319.1,0.04506346]
[1738357661515,0.216,3319.3,3319.1,0.04506346]
[1738357662651,0.015,3319.2,3319.1,0.04506346]
[1738357663003,0.339365,3319.2,3319.1,0.04506346]
[1738357663203,0.339365,3319.2,3318.6,3.56616078]
[1738357663408,0.339365,3319.2,3318.7,0.0448171]
[1738357664239,0.015,3319.2,3318.7,0.0448171]
[1738357666951,0.7838,3319.5,3318.7,0.0448171]
[1738357667251,0.216,3319.4,3318.8,3.01309]
[1738357667473,0.015,3319.3,3318.9,0.04467004]
[1738357667773,0.324361,3319.2,3318.9,0.04467004]
[1738357667955,0.324361,3319.2,3318.6,3.56616078]
[1738357668161,0.324361,3319.2,3319.0,0.04459652]
[1738357668360,0.324361,3319.2,3318.6,3.56616078]
[1738357668685,7.686231,3319.2,3319.1,0.044523]
[1738357668844,7.686231,3319.2,3318.1,2.76461306]
[1738357668845,3.57787,3319.1,3318.2,3.01365]
[1738357669170,0.0075,3318.9,3318.3,0.04511126]
[1738357669674,0.015,3318.5,3318.3,0.04511126]
[1738357669883,0.216,3318.4,3318.3,0.04511126]
[1738357670224,0.2235,3318.4,3317.8,2.76461306]
[1738357670538,0.2235,3318.4,3317.9,0.04417129]
[1738357670738,0.629927,3318.4,3317.9,0.04417129]
[1738357671058,0.03064292,3318.3,3317.8,2.76461306]
[1738357671358,0.03064292,3318.3,3317.9,0.04417129]
[1738357671763,0.7809,3318.0,3317.2,5.77918306]
[1738357672278,0.7809,3318.0,3317.3,0.04467364]
[1738357672577,0.38253329,3317.9,3317.3,0.04467364]
[1738357672877,0.38253329,3317.9,3317.3,3.05911364]
[1738357673026,0.216,3318.3,3317.9,3.01395]
[1738357673227,0.216,3318.3,3318.0,0.04415859]
[1738357673465,0.216,3318.3,3317.8,2.76461306]
[1738357673642,0.5376,3318.3,3317.9,0.04433177]
[1738357673830,0.216,3318.3,3317.9,0.04433177]
[1738357676268,0.8143,3318.2,3317.9,0.04433177]
[1738357676472,0.216,3318.1,3317.9,0.04433177]
[1738357677671,0.216,3318.1,3317.9,3.05821177]
[1738357678073,0.216,3318.2,3318.1,3.01372]
[1738357678276,0.216,3318.2,3318.1,5.77833306]
[1738357678485,0.216,3318.5,3318.3,3.01357]
[1738357678824,0.216,3318.5,3318.1,5.82244512]
[1738357679139,0.216,3318.5,3318.1,3.0137]
[1738357679424,0.216,3318.5,3318.2,0.04405851]
[1738357680421,0.216,3318.5,3317.9,3.01392]
[1738357680625,0.216,3318.5,3318.0,0.04420563]
[1738357680932,0.793,3318.3,3317.8,3.01402]
[1738357681090,0.793,3318.3,3318.1,0.04425103]
[1738357681285,0.793,3318.3,3317.7,3.01413]
[1738357681487,0.82364292,3318.3,3318.2,0.04417747]
[1738357681694,0.82364292,3318.3,3317.3,13.01447]
[1738357681695,0.82364292,3318.3,3317.4,3.0144]
[1738357681900,0.38371929,3318.2,3317.4,3.0144]
[1738357682103,0.03064292,3318.1,3317.3,10.0]
[1738357682321,0.015,3318.0,3317.3,10.0]
[1738357682547,0.015,3317.8,3317.3,10.0]
[1738357683043,3.05968292,3317.8,3317.3,10.0]
[1738357683200,0.68158829,3317.7,3317.3,10.0]
[1738357683547,0.015,3317.4,3317.3,10.0]
[1738357684047,7.40174292,3317.4,3317.3,10.0]
[1738357684255,7.3711,3317.4,3317.3,10.0]
[1738357684399,7.3711,3317.4,3317.3,9.08155347]
[1738357684606,8.14677741,3317.4,3317.3,9.08155347]
[1738357685345,8.14677741,3317.4,3317.3,8.16310694]
[1738357685640,8.14677741,3317.4,3317.3,3.26480696]
[1738357685840,8.34677741,3317.4,3317.3,2.13498608]
[1738357686139,8.34677741,3317.4,3317.3,1.1831728]
[1738357686342,0.015,3316.3,3315.5,3.56096546]
[1738357686557,0.0075,3316.1,3315.5,3.56096546]
[1738357686916,0.8322,3316.4,3315.5,3.56096546]
[1738357687116,0.7511,3317.1,3315.9,3.56096546]
[1738357687336,0.216,3316.3,3316.2,6.57641546]
[1738357687517,0.216,3316.3,3316.2,3.56096546]
[1738357687723,0.216,3316.3,3316.2,6.6206773]
[1738357688627,0.216,3316.3,3316.2,3.6051873]
[1738357689051,0.216,3316.3,3316.2,6.6206773]
[1738357694149,0.7511,3317.1,3316.2,4.56881403]
[1738357694350,0.216,3317.0,3316.9,3.01479]
[1738357694709,0.216,3317.0,3316.9,3.05903898]
[1738357694909,0.216,3317.0,3316.9,0.04424898]
[1738357695247,0.216,3317.0,3316.9,3.05910898]
[1738357696750,0.216,3317.0,3316.9,0.04424898]
[1738357696911,0.216,3317.0,3316.9,3.01486]
[1738357697115,0.216,3317.0,3316.9,3.05910898]
[1738357697344,0.015,3317.8,3317.3,3.01442]
[1738357697576,0.216,3317.7,3317.4,3.01439]
[1738357697886,0.216,3317.7,3317.4,3.05827098]
[1738357698050,0.216,3317.6,3317.4,3.05827098]
[1738357698587,0.216,3317.5,3317.4,0.04388098]
[1738357698879,0.216,3317.5,3317.4,3.0144]
[1738357699081,0.216,3317.5,3317.4,0.04388098]
[1738357699682,0.216,3317.5,3317.4,3.05828098]
[1738357701245,0.216,3317.5,3317.4,0.04388098]
[1738357701647,0.216,3317.5,3317.2,3.01451]
[1738357701872,0.216,3317.5,3317.4,0.04388098]
[1738357702443,0.216,3317.5,3317.2,3.01456]
[1738357702643,0.216,3317.5,3317.3,0.04395457]
[1738357702886,0.8261,3317.9,3317.3,0.04395457]
[1738357703044,0.216,3317.5,3317.3,0.04395457]
[1738357703559,0.216,3317.5,3317.4,3.0144]
[1738357703782,0.216,3317.5,3317.4,3.05828098]
[1738357704474,0.216,3317.5,3317.4,0.04388098]
[1738357704785,0.216,3317.5,3317.3,3.01448]
[1738357704951,0.216,3317.5,3317.4,0.04368156]
[1738357706183,0.216,3317.5,3317.1,3.01462]
[1738357706390,0.216,3317.5,3317.4,0.04368156]
[1738357706631,0.216,3317.5,3317.1,6.02922]
[1738357706749,0.216,3317.5,3317.4,0.04368156]
[1738357707058,0.216,3317.5,3317.1,3.0146]
[1738357707250,0.216,3317.5,3317.4,0.04368156]
[1738357707452,0.216,3317.5,3317.2,3.01457]
[1738357707682,0.216,3317.5,3317.4,0.04368156]
[1738357707845,0.216,3317.5,3317.3,0.04375515]
[1738357708048,0.216,3317.5,3317.4,0.04368156]
[1738357708449,0.216,3317.5,3317.2,3.01454]
[1738357708646,0.216,3317.5,3317.4,0.04368156]
[1738357708888,0.216,3317.5,3317.3,0.04375515]
[1738357709088,0.216,3317.5,3317.4,0.04368156]
[1738357709253,0.216,3317.5,3317.0,6.02942]
[1738357709455,0.216,3317.5,3317.1,0.04390235]
[1738357710003,0.216,3317.5,3317.0,3.01476]
[1738357710150,0.216,3317.5,3317.2,0.04384812]
[1738357710601,0.216,3317.5,3317.0,3.01476]
[1738357710898,0.216,3317.5,3317.3,0.04377453]
[1738357711094,0.216,3317.5,3317.0,3.01476]
[1738357711278,0.231,3317.5,3317.4,0.04370093]
[1738357711688,1.0543,3317.5,3316.5,3.76897]
[1738357711999,1.0543,3317.5,3316.0,2.76768666]
[1738357712000,0.015,3317.2,3316.6,0.04428979]